bitfinex/quotes_SOLUSD_20220104
["timestamp","ask_amount","ask_price","bid_price","bid_amount"]
[1641274658530,8.82,167.33,167.23,28.61731658]
[1641274658728,9.32,167.33,167.23,28.61731658]
[1641274659329,9.32,167.33,167.23,0.5]
[1641274659532,12.07129368,167.33,167.22,23.6613]
[1641274660336,12.07129368,167.33,167.23,24.89460118]
[1641274661528,10.6446,167.33,167.23,24.89460118]
[1641274664933,10.3846,167.33,167.23,24.89460118]
[1641274666339,10.6446,167.33,167.23,24.89460118]
[1641274666536,10.6446,167.33,167.22,23.6613]
[1641274666737,10.6446,167.33,167.22,24.1613]
[1641274667941,10.6446,167.33,167.22,24.4213]
[1641274669341,10.6446,167.33,167.22,0.5]
[1641274669539,12.07129368,167.33,167.22,0.5]
[1641274669740,12.07129368,167.33,167.19,101.61841113]
[1641274670339,12.07129368,167.33,167.19,78.7627]
[1641274670939,36.00819368,167.33,167.19,78.7627]
[1641274672741,44.98069368,167.33,167.19,78.7627]
[1641274672941,44.72069368,167.33,167.19,78.7627]
[1641274673144,35.74819368,167.33,167.19,78.7627]
[1641274673342,34.3215,167.33,167.2,22.636]
[1641274674443,34.5815,167.33,167.2,22.636]
[1641274680047,36.00819368,167.33,167.2,22.636]
[1641274680446,44.98069368,167.33,167.2,22.636]
[1641274680647,44.98069368,167.33,167.19,79.5062]
[1641274680849,44.98069368,167.33,167.19,80.0062]
[1641274683652,8.973,167.32,167.19,80.0062]
[1641274683852,10.88235411,167.31,167.19,0.5]
[1641274684051,41.0333053,167.31,167.19,0.5]
[1641274684251,35.70194779,167.31,167.13,24.0405]
[1641274684454,7.25805119,167.3,167.13,24.8005]
[1641274684752,17.5347,167.29,167.13,24.3005]
[1641274684954,25.8599867,167.28,167.13,24.3005]
[1641274685153,8.56,167.27,167.13,24.3005]
[1641274685352,1.3263,167.26,167.13,24.3005]
[1641274685553,11.11735033,167.25,167.13,24.3005]
[1641274685954,11.87735033,167.25,167.13,24.8005]
[1641274686354,1.3403,167.24,167.13,24.8005]
[1641274686555,1.6003,167.24,167.13,24.8005]
[1641274686755,2.1003,167.24,167.13,24.8005]
[1641274691766,8.56,167.29,167.13,33.3605]
[1641274691963,1.2481,167.3,167.13,33.3605]
[1641274692166,1.2481,167.3,167.14,1.42669368]
[1641274692364,1.2481,167.3,167.15,62.50511014]
[1641274692564,1.2481,167.3,167.15,62.76511014]
[1641274692764,2.55853715,167.29,167.16,1.42669368]
[1641274693068,2.55853715,167.29,167.17,8.56]
[1641274693465,3.31853715,167.29,167.18,1.42669368]
[1641274693666,3.31853715,167.29,167.18,27.30889368]
[1641274693867,3.31853715,167.29,167.18,26.6422]
[1641274694265,3.31853715,167.29,167.18,26.3822]
[1641274694867,1.2942,167.28,167.18,26.3822]
[1641274695066,1.5542,167.28,167.18,26.3822]
[1641274695266,2.0542,167.28,167.18,26.3822]
[1641274696071,2.0542,167.28,167.18,26.6422]
[1641274696267,0.76,167.28,167.18,26.6422]
[1641274696467,3.31853715,167.29,167.18,26.6422]
[1641274696666,2.81853715,167.29,167.18,26.6422]
[1641274702390,2.81853715,167.29,167.18,26.3822]
[1641274703589,2.81853715,167.29,167.18,26.6422]
[1641274703787,2.81853715,167.29,167.18,26.3822]
[1641274704591,2.55853715,167.29,167.18,26.3822]
[1641274704995,2.55853715,167.29,167.18,26.6422]
[1641274705194,3.05853715,167.29,167.18,26.6422]
[1641274705998,3.31853715,167.29,167.18,26.6422]
[1641274706197,0.76,167.29,167.18,26.6422]
[1641274706398,0.26,167.29,167.18,26.6422]
[1641274706700,76.4509,167.35,167.18,26.6422]
[1641274706701,5.83135751,167.36,167.19,9.98669368]
[1641274706899,1.2452,167.35,167.2,72.4087]
[1641274707101,8.56,167.37,167.22,24.66763695]
[1641274707300,2.8398943,167.36,167.23,32.8836]
[1641274707503,2.8398943,167.36,167.24,1.2831]
[1641274707800,2.8398943,167.36,167.24,9.8431]
[1641274707999,2.8398943,167.36,167.25,24.3161]
[1641274708200,3.3398943,167.36,167.25,24.3161]
[1641274708400,3.3398943,167.36,167.25,25.0761]
[1641274709300,3.5998943,167.36,167.25,25.0761]
[1641274720909,3.5998943,167.36,167.26,1.3537]
[1641274721110,3.5998943,167.36,167.26,1.6137]
[1641274721310,3.5998943,167.36,167.26,2.1137]
[1641274724708,3.3398943,167.36,167.26,2.1137]
[1641274725110,3.3398943,167.36,167.26,1.3537]
[1641274725308,3.3398943,167.36,167.25,24.3161]
[1641274725511,8.56,167.35,167.25,24.3161]
[1641274725711,8.56,167.35,167.21,1.3695]
[1641274725712,9.98669368,167.35,167.21,1.3695]
[1641274725908,25.39609368,167.34,167.21,24.7172]
[1641274726108,8.56,167.33,167.21,0.02]
[1641274726309,23.3772,167.32,167.18,29.15746689]
[1641274726511,2.70447314,167.3,167.18,29.15746689]
[1641274726812,1.3277,167.29,167.18,29.15746689]
[1641274727015,1.5877,167.29,167.18,29.15746689]
[1641274727213,2.0877,167.29,167.18,29.15746689]
[1641274727812,2.0877,167.29,167.15,105.052]
[1641274728012,2.0877,167.29,167.15,105.552]
[1641274728614,3.51439368,167.29,167.15,104.186]
[1641274728813,8.56,167.28,167.15,104.186]
[1641274729022,8.82,167.28,167.15,104.186]
[1641274729213,9.32,167.28,167.15,104.186]
[1641274730014,9.32,167.28,167.15,104.446]
[1641274730917,1.3716,167.27,167.15,104.186]
[1641274731118,8.56,167.26,167.15,104.186]
[1641274731616,9.32,167.26,167.15,104.186]
[1641274732217,8.82,167.26,167.15,104.186]
[1641274732419,8.82,167.26,167.15,104.446]
[1641274733720,9.32,167.26,167.15,104.446]
[1641274733920,9.32,167.26,167.15,104.186]
[1641274734827,9.32,167.26,167.15,104.446]
[1641274741753,9.32,167.26,167.13,24.6834]
[1641274741960,24.2681,167.25,167.13,49.6749]
[1641274742153,2.56572976,167.24,167.13,49.6749]
[1641274742354,3.81562976,167.24,167.13,49.6749]
[1641274742555,4.57562976,167.24,167.13,24.9915]
[1641274743154,4.57562976,167.24,167.13,25.4915]
[1641274747162,4.31562976,167.24,167.13,25.4915]
[1641274747360,8.56,167.28,167.13,31.3875]
[1641274747559,1.3354,167.27,167.14,34.1378]
[1641274747759,1.3354,167.27,167.15,22.6076]
[1641274747960,8.56,167.3,167.15,23.3676]
[1641274748264,2.50100089,167.28,167.16,8.56]
[1641274748462,2.50100089,167.28,167.16,8.82]
[1641274748660,2.50100089,167.28,167.17,22.6233]
[1641274748866,2.50100089,167.28,167.17,23.1233]
[1641274749163,2.50100089,167.28,167.17,23.3833]
[1641274749361,2.76100089,167.28,167.17,23.3833]
[1641274755470,2.50100089,167.28,167.17,23.3833]
[1641274756871,2.76100089,167.28,167.17,23.3833]
[1641274757875,3.26100089,167.28,167.17,23.3833]
[1641274759177,2.76100089,167.28,167.17,23.3833]
[1641274760877,3.26100089,167.28,167.17,23.3833]
[1641274761281,3.26100089,167.28,167.17,0.26]
[1641274761486,8.56,167.27,167.12,23.9825]
[1641274761681,9.9355,167.27,167.12,22.7395]
[1641274761878,10.6955,167.27,167.12,0.02]
[1641274762081,1.42669368,167.26,167.12,0.02]
[1641274762280,8.56,167.25,167.11,93.7]
[1641274762480,8.82,167.25,167.11,93.7]
[1641274762679,1.42669368,167.24,167.11,93.7]
[1641274762880,8.56,167.23,167.11,94.2]
[1641274763085,2.94396673,167.22,167.11,94.2]
[1641274763285,11.50396673,167.22,167.11,94.2]
[1641274763585,12.26396673,167.22,167.11,94.2]
[1641274767514,12.26396673,167.22,167.11,0.5]
[1641274767914,12.26396673,167.22,167.1,24.061]
[1641274770821,12.00396673,167.22,167.1,24.061]
[1641274772023,12.26396673,167.22,167.1,24.061]
[1641274772424,12.26396673,167.22,167.1,0.76]
[1641274772623,19.52296673,167.22,167.1,0.5]
[1641274772824,19.52296673,167.22,167.08,0.55258348]
[1641274773027,1.2818,167.21,167.08,0.55258348]
[1641274773238,23.8381,167.21,167.08,0.55258348]
[1641274773523,24.5981,167.21,167.08,0.55258348]
[1641274773723,8.56,167.2,167.08,0.55258348]
[1641274773926,9.06,167.2,167.08,0.55258348]
[1641274774124,9.32,167.2,167.08,0.55258348]
[1641274774925,1.3123,167.19,167.08,0.55258348]
[1641274775556,2.0723,167.19,167.08,0.55258348]
[1641274776527,10.6323,167.19,167.08,0.55258348]
[1641274782431,10.6323,167.19,167.05,27.15550999]
[1641274783129,10.6323,167.19,167.06,23.3513]
[1641274783331,10.6323,167.19,167.06,23.8513]
[1641274783529,10.3723,167.19,167.06,23.8513]
[1641274783729,10.3723,167.19,167.06,24.1113]
[1641274784733,10.3723,167.19,167.06,100.8495]
[1641274784932,10.6323,167.19,167.06,0.26]
[1641274785133,24.2911,167.18,167.01,24.8322]
[1641274785332,8.56,167.17,167.01,24.8322]
[1641274785534,2.4543627,167.16,167.01,24.8322]
[1641274785735,8.56,167.15,167.01,24.8322]
[1641274785934,1.3028,167.14,167.01,24.8322]
[1641274786134,8.56,167.13,167.01,24.8322]
[1641274786332,9.06,167.13,167.01,24.8322]
[1641274786534,9.32,167.13,167.01,24.8322]
[1641274786732,9.32,167.13,167.01,25.0922]
[1641274786935,1.2648,167.12,167.01,25.3322]
[1641274787131,9.8248,167.12,167.01,25.3322]
[1641274787334,10.5848,167.12,167.01,25.5922]
[1641274791232,10.3248,167.12,167.01,25.5922]
[1641274793035,10.5848,167.12,167.01,25.5922]
[1641274797340,9.32,167.12,167.01,25.5922]
[1641274798942,9.06,167.12,167.01,25.5922]
[1641274800346,9.32,167.12,167.01,25.5922]
[1641274803152,9.32,167.12,167.01,25.3322]
[1641274804452,9.32,167.12,167.01,25.5922]
[1641274806072,2.85077067,167.1,167.01,25.5922]
[1641274806472,3.11077067,167.1,167.01,25.5922]
[1641274810679,0.26,167.1,167.01,25.5922]
[1641274810877,9.06,167.12,167.01,25.5922]
[1641274811482,1.2795,167.16,167.01,25.5922]
[1641274811679,2.93701023,167.12,167.01,25.5922]
[1641274813483,3.19701023,167.12,167.01,25.5922]
[1641274813782,3.69701023,167.12,167.01,25.5922]
[1641274814281,3.69701023,167.12,167.01,25.3322]
[1641274814483,1.3736,167.11,167.01,25.3322]
[1641274814884,2.1336,167.11,167.01,25.3322]
[1641274815989,2.1336,167.11,167.01,25.5922]
[1641274817587,2.1336,167.11,167.01,25.3322]
[1641274818890,2.1336,167.11,167.01,25.5922]
[1641274819089,1.8736,167.11,167.01,25.5922]
[1641274819490,2.93701023,167.12,167.01,25.5922]
[1641274820592,3.19701023,167.12,167.01,25.5922]
[1641274820796,3.69701023,167.12,167.01,25.5922]
[1641274820996,1.299,167.11,167.01,25.5922]
[1641274821494,1.559,167.11,167.01,25.5922]
[1641274821692,2.059,167.11,167.01,25.5922]
[1641274826899,1.559,167.11,167.01,25.5922]
[1641274827200,1.299,167.11,167.01,25.5922]
[1641274827600,9.8021,167.17,167.01,40.5442]
[1641274827804,1.3243,167.16,167.01,40.5442]
[1641274828000,1.3243,167.16,167.02,1.42669368]
[1641274828201,23.1792,167.2,167.03,8.56]
[1641274828404,1.3358,167.19,167.05,30.67368249]
[1641274828707,2.71705445,167.18,167.05,8.56]
[1641274828904,24.9762,167.17,167.06,24.9676]
[1641274829105,8.56,167.16,167.06,24.9676]
[1641274829605,1.3248,167.15,167.06,24.9676]
[1641274830003,2.0848,167.15,167.06,24.9676]
[1641274832028,2.0848,167.15,167.06,26.2141]
[1641274832230,2.0848,167.15,167.06,24.9676]
[1641274835132,1.5848,167.15,167.06,24.9676]
[1641274835333,1.3248,167.15,167.06,24.9676]
[1641274836334,1.8248,167.15,167.06,24.9676]
[1641274836537,1.3248,167.15,167.06,24.9676]
[1641274836738,2.0848,167.15,167.06,24.9676]
[1641274839737,2.0848,167.15,167.06,26.2362]
[1641274839938,2.0848,167.15,167.06,26.4962]
[1641274840237,1.8248,167.15,167.06,26.4962]
[1641274841238,1.8248,167.15,167.06,26.2362]
[1641274841439,2.0848,167.15,167.06,26.2362]
[1641274842739,1.8248,167.15,167.06,26.2362]
[1641274843140,1.8248,167.15,167.06,26.4962]
[1641274844343,2.0848,167.15,167.06,26.4962]
[1641274844740,1.5848,167.15,167.06,26.4962]
[1641274844940,11.27705445,167.18,167.06,34.2432]
[1641274845139,0.76,167.17,167.06,34.2432]
[1641274845744,3.47705445,167.18,167.06,34.2432]
[1641274846741,2.71705445,167.18,167.06,34.2432]
[1641274846945,2.71705445,167.18,167.06,26.9962]
[1641274847341,3.21705445,167.18,167.06,26.9962]
[1641274848144,3.47705445,167.18,167.06,26.9962]
[1641274849844,2.97705445,167.18,167.06,26.9962]
[1641274850244,2.71705445,167.18,167.06,26.9962]
[1641274857858,2.71705445,167.18,167.06,36.1844]
[1641274858882,2.71705445,167.18,167.06,44.7444]
[1641274859086,9.8725,167.24,167.06,46.17109368]
[1641274859286,8.56,167.26,167.06,51.31609368]
[1641274859481,1.357,167.27,167.07,1.2918]
[1641274859686,1.357,167.27,167.08,34.51667146]
[1641274859883,1.357,167.27,167.08,36.44336514]
[1641274860084,2.48538661,167.26,167.09,1.42669368]
[1641274860283,2.48538661,167.26,167.1,32.8827]
[1641274860484,2.74538661,167.26,167.1,38.1387]
[1641274860691,2.74538661,167.26,167.11,1.42669368]
[1641274860888,2.48538661,167.26,167.12,81.3435]
[1641274861090,2.48538661,167.26,167.12,81.6035]
[1641274861387,2.48538661,167.26,167.12,82.1035]
[1641274861589,2.48538661,167.26,167.13,25.5158]
[1641274861788,2.48538661,167.26,167.13,34.0758]
[1641274861987,2.74538661,167.26,167.13,34.8358]
[1641274862388,2.48538661,167.26,167.13,34.8358]
[1641274863789,2.98538661,167.26,167.13,9.32]
[1641274864390,3.24538661,167.26,167.13,9.32]
[1641274864591,1.3541,167.25,167.13,9.32]
[1641274864893,3.28079368,167.25,167.13,9.32]
[1641274865091,3.54079368,167.25,167.13,9.32]
[1641274865592,3.54079368,167.25,167.13,9.06]
[1641274865791,11.10079368,167.25,167.13,0.5]
[1641274866195,11.10079368,167.25,167.12,73.2835]
[1641274866392,10.74669368,167.25,167.12,73.2835]
[1641274866592,9.32,167.25,167.12,73.2835]
[1641274866992,1.3159,167.24,167.12,73.5435]
[1641274867395,2.0759,167.24,167.12,73.5435]
[1641274867593,2.0759,167.24,167.13,24.1169]
[1641274867893,2.0759,167.24,167.13,24.6169]
[1641274868093,2.0759,167.24,167.13,24.8769]
[1641274868291,2.0759,167.24,167.13,26.218]
[1641274869593,8.56,167.23,167.13,26.218]
[1641274870100,8.82,167.23,167.13,26.218]
[1641274870395,1.3159,167.24,167.13,26.218]
[1641274870994,2.48538661,167.26,167.13,26.218]
[1641274871197,2.48538661,167.26,167.13,33.129]
[1641274871794,2.74538661,167.26,167.13,33.129]
[1641274872196,2.74538661,167.26,167.13,26.218]
[1641274873098,1.3279,167.25,167.13,26.218]
[1641274873496,1.5879,167.25,167.13,26.218]
[1641274875000,1.3279,167.25,167.13,26.218]
[1641274877200,2.48538661,167.26,167.14,8.56]
[1641274877400,2.48538661,167.26,167.16,23.60179749]
[1641274877601,2.48538661,167.26,167.16,23.86179749]
[1641274877801,2.48538661,167.26,167.16,24.36179749]
[1641274881606,2.48538661,167.26,167.17,1.2622]
[1641274881806,11.30538661,167.26,167.17,0.5]
[1641274882009,11.80538661,167.26,167.15,23.765]
[1641274882811,1.3231,167.25,167.15,23.765]
[1641274883008,8.56,167.24,167.13,1.2693]
[1641274883208,8.56,167.24,167.05,22.683]
[1641274883410,10.74669368,167.24,167.07,2.5823]
[1641274884111,10.74669368,167.24,167.07,29.20508118]
[1641274884336,2.74009368,167.23,167.07,29.20508118]
[1641274884513,8.56,167.22,167.09,23.6314]
[1641274884913,9.32,167.22,167.09,23.6314]
[1641274885712,9.32,167.22,167.09,23.3714]
[1641274891627,2.53319789,167.2,167.09,23.6314]
[1641274891843,8.56,167.19,167.09,23.6314]
[1641274892047,8.82,167.19,167.09,23.6314]
[1641274892245,9.06,167.19,167.09,23.6314]
[1641274892446,8.82,167.19,167.09,23.6314]
[1641274893748,0.26,167.19,167.09,23.6314]
[1641274893948,2.79319789,167.2,167.09,23.6314]
[1641274894147,2.79319789,167.2,167.09,29.0954]
[1641274894346,2.79319789,167.2,167.09,30.52209368]
[1641274895149,0.26,167.2,167.09,30.52209368]
[1641274895450,0.26,167.2,167.1,23.8711]
[1641274895655,2.0977,167.21,167.1,23.8711]
[1641274895850,2.0977,167.21,167.1,25.9725]
[1641274896051,4.5950783,167.21,167.1,25.9725]
[1641274896851,13.1550783,167.21,167.1,25.9725]
[1641274905460,12.6550783,167.21,167.1,25.9725]
[1641274907465,12.6550783,167.21,167.1,24.3711]
[1641274907764,13.1550783,167.21,167.08,74.8647]
[1641274907964,13.1550783,167.21,167.09,0.5]
[1641274908165,13.1550783,167.21,167.08,75.1247]
[1641274908366,13.1550783,167.21,167.08,75.6247]
[1641274908573,13.1550783,167.21,167.09,23.4282]
[1641274908965,13.1550783,167.21,167.09,24.1882]
[1641274909765,13.1550783,167.21,167.1,1.2851]
[1641274909967,13.1550783,167.21,167.1,2.0451]
[1641274910367,13.1550783,167.21,167.1,0.5]
[1641274910595,13.1550783,167.21,167.09,23.6882]
[1641274910768,13.1550783,167.21,167.09,23.4282]
[1641274911970,13.1550783,167.21,167.09,23.6882]
[1641274912369,13.1550783,167.21,167.09,24.1882]
[1641274913172,12.8950783,167.21,167.09,24.1882]
[1641274913373,12.8950783,167.21,167.1,1.3144]
[1641274913573,12.8950783,167.21,167.1,1.5744]
[1641274913778,12.8950783,167.21,167.1,2.0744]
[1641274914577,13.1550783,167.21,167.1,2.0744]
[1641274915180,12.8950783,167.21,167.1,2.0744]
[1641274915580,12.3950783,167.21,167.1,2.0744]
[1641274915781,12.3950783,167.21,167.11,22.6219]
[1641274915980,12.3950783,167.21,167.11,23.3819]
[1641274916581,12.6550783,167.21,167.11,23.3819]
[1641274919004,13.1550783,167.21,167.11,23.3819]
[1641274919604,13.1550783,167.21,167.11,28.2869]
[1641274919806,12.6550783,167.21,167.11,28.2869]
[1641274920404,9.8977,167.21,167.11,28.2869]
[1641274920607,1.3377,167.21,167.12,1.2581]
[1641274920807,23.1603,167.24,167.12,1.2581]
[1641274921010,23.1603,167.24,167.13,1.42669368]
[1641274921207,24.5007,167.24,167.14,23.59989659]
[1641274921407,2.47183221,167.23,167.14,24.09989659]
[1641274921612,2.47183221,167.23,167.14,24.35989659]
[1641274921808,2.73183221,167.23,167.14,25.72529659]
[1641274925210,2.73183221,167.23,167.14,1.3654]
[1641274925411,2.73183221,167.23,167.11,22.6219]
[1641274925612,3.23183221,167.23,167.12,1.3255]
[1641274926312,1.3423,167.22,167.12,1.3255]
[1641274926514,1.6023,167.22,167.12,1.3255]
[1641274926714,1.6023,167.22,167.12,2.0855]
[1641274928212,1.6023,167.22,167.12,1.5855]
[1641274928412,1.6023,167.22,167.12,2.0855]
[1641274929617,1.6023,167.22,167.12,1.8255]
[1641274929817,1.6023,167.22,167.12,2.0855]
[1641274930419,1.6023,167.22,167.12,1.8255]
[1641274930617,10.1623,167.22,167.12,1.8255]
[1641274930816,10.6623,167.22,167.12,1.8255]
[1641274934019,10.6623,167.22,167.12,1.3255]
[1641274934620,10.6623,167.22,167.11,22.6219]
[1641274937822,10.6623,167.22,167.11,23.1219]
[1641274938220,10.6623,167.22,167.11,23.3819]
[1641274938426,10.4023,167.22,167.11,23.3819]
[1641274938622,9.9023,167.22,167.11,23.3819]
[1641274938822,10.4023,167.22,167.13,25.45710062]
[1641274939021,10.4023,167.22,167.14,23.2157]
[1641274939423,10.4023,167.22,167.14,23.7157]
[1641274940223,10.4023,167.22,167.14,25.089]
[1641274940625,8.9023,167.22,167.14,25.089]
[1641274940829,8.6623,167.22,167.14,25.089]
[1641274941524,9.1623,167.22,167.1,0.02]
[1641274941726,23.9938,167.21,167.1,24.4276]
[1641274941931,33.0538,167.21,167.1,24.4276]
[1641274942125,33.3138,167.21,167.1,24.4276]
[1641274942326,1.264,167.2,167.1,24.4076]
[1641274942525,8.56,167.19,167.1,24.4076]
[1641274942926,9.32,167.19,167.1,24.4076]
[1641274945427,9.32,167.19,167.1,24.9076]
[1641274945628,9.32,167.19,167.1,24.4076]
[1641274945829,9.32,167.19,167.1,24.9076]
[1641274946031,9.06,167.19,167.1,24.9076]
[1641274946231,8.56,167.19,167.1,25.1676]
[1641274946836,11.03183221,167.23,167.1,25.1676]
[1641274947034,11.03183221,167.23,167.1,30.5346]
[1641274947231,11.53183221,167.23,167.1,31.96129368]
[1641274947632,11.79183221,167.23,167.1,31.96129368]
[1641274948634,11.79183221,167.23,167.1,26.59429368]
[1641274948832,23.8166,167.22,167.1,24.4076]
[1641274949031,8.56,167.21,167.1,24.4076]
[1641274949439,9.32,167.21,167.1,24.4076]
[1641274949838,1.334,167.2,167.1,24.4076]
[1641274950039,1.594,167.2,167.1,24.4076]
[1641274950240,2.094,167.2,167.1,24.9076]
[1641274951541,2.094,167.2,167.1,24.4076]
[1641274952160,8.56,167.19,167.1,24.4076]
[1641274952357,9.06,167.19,167.1,24.4076]
[1641274952559,9.32,167.19,167.1,24.4076]
[1641274954563,9.32,167.19,167.06,1.4307549]
[1641274954767,9.32,167.19,167.07,1.3526]
[1641274955164,10.74669368,167.19,167.07,1.3526]
[1641274955967,1.2787,167.18,167.07,1.3526]
[1641274956165,10.82087353,167.17,167.08,73.8576]
[1641274956366,11.32087353,167.17,167.08,73.8576]
[1641274956565,11.32087353,167.17,167.08,74.3576]
[1641274956566,11.58087353,167.17,167.08,74.3576]
[1641274956967,11.58087353,167.17,167.09,1.343]
[1641274957568,11.58087353,167.17,167.09,24.403]
[1641274960267,11.58087353,167.17,167.08,73.5976]
[1641274960468,11.58087353,167.17,167.06,1.4307549]
[1641274960668,34.89067353,167.17,167.06,1.4307549]
[1641274961269,1.2647,167.16,167.06,1.4307549]
[1641274961471,10.5847,167.16,167.06,1.4307549]
[1641274962668,1.42669368,167.15,167.06,1.4307549]
[1641274962871,8.56,167.14,167.06,1.4307549]
[1641274963071,8.82,167.14,167.06,1.4307549]
[1641274963270,10.74669368,167.14,167.06,1.4307549]
[1641274966271,10.6797,167.14,167.06,1.4307549]
[1641274968475,10.4197,167.14,167.06,1.4307549]
[1641274969677,9.9197,167.14,167.06,1.4307549]
[1641274970877,10.4197,167.14,167.06,1.4307549]
[1641274971776,10.6797,167.14,167.06,1.4307549]
[1641274973885,10.6797,167.14,167.06,1.9307549]
[1641274975083,10.6797,167.14,167.06,2.1907549]
[1641274975884,10.1797,167.14,167.06,2.1907549]
[1641274977990,9.9197,167.14,167.06,25.6694269]
[1641274978408,8.56,167.14,167.06,25.6694269]
[1641274979311,8.82,167.14,167.06,25.6694269]
[1641274981712,8.82,167.14,167.06,24.238672]
[1641274981912,8.82,167.14,167.06,0.76]
[1641274982115,8.82,167.14,167.06,0.5]
[1641274982314,8.82,167.14,167.04,103.5627]
[1641274982511,8.82,167.14,167.04,103.8227]
[1641274983115,8.82,167.14,167.05,27.18942483]
[1641274983413,8.82,167.14,167.06,23.367]
[1641274983713,8.82,167.14,167.06,23.627]
[1641274983912,8.82,167.14,167.06,24.127]
[1641274984315,8.82,167.14,167.06,25.3896]
[1641274985913,8.56,167.14,167.06,25.3896]
[1641274986916,2.26087353,167.17,167.06,25.3896]
[1641274987317,2.52087353,167.17,167.06,25.3896]
[1641274989918,2.26087353,167.17,167.06,25.3896]
[1641274997421,2.26087353,167.17,167.06,26.81629368]
[1641275009037,2.26087353,167.17,167.06,26.05629368]
[1641275009237,2.52087353,167.17,167.06,24.6296]
[1641275009436,8.56,167.16,167.06,24.6296]
[1641275009837,1.2854,167.15,167.06,24.6296]
[1641275010038,10.1054,167.15,167.06,24.6296]
[1641275010436,10.1054,167.15,167.06,25.3896]
[1641275012546,10.1054,167.15,167.06,0.5]
[1641275012748,10.6054,167.15,167.06,0.5]
[1641275012946,10.6054,167.15,167.01,1.2709]
[1641275012947,10.6054,167.15,167.02,1.2801]
[1641275013149,16.4184,167.15,167.02,1.2801]
[1641275013747,24.6597,167.14,167.02,25.0954]
[1641275013947,8.56,167.13,167.02,25.3554]
[1641275014350,8.82,167.13,167.02,25.8354]
[1641275014950,10.1911,167.13,167.02,25.8354]
[1641275016052,9.9311,167.13,167.02,25.8354]
[1641275017353,10.1911,167.13,167.02,25.8354]
[1641275018953,9.9311,167.13,167.02,25.8354]
[1641275019158,8.56,167.13,167.02,25.8354]
[1641275020775,9.9242,167.16,167.02,25.8354]
[1641275020977,10.1842,167.16,167.02,25.8354]
[1641275021576,1.6242,167.16,167.03,8.56]
[1641275021976,1.6242,167.16,167.03,9.32]
[1641275022876,1.6242,167.16,167.04,25.263]
[1641275023078,1.6242,167.16,167.04,25.523]
[1641275023376,1.6242,167.16,167.04,26.023]
[1641275028282,2.26087353,167.17,167.04,26.023]
[1641275029484,2.52087353,167.17,167.04,26.023]
[1641275031291,2.52087353,167.17,167.05,8.56]
[1641275031490,2.52087353,167.17,167.06,24.4705]
[1641275031892,2.52087353,167.17,167.06,25.2305]
[1641275032289,2.52087353,167.17,167.07,1.2796]
[1641275032490,2.52087353,167.17,167.08,25.99881376]
[1641275032691,2.52087353,167.17,167.09,23.959]
[1641275032893,2.52087353,167.17,167.09,24.459]
[1641275033091,2.52087353,167.17,167.09,24.719]
[1641275033290,2.52087353,167.17,167.09,25.9727]
[1641275036996,2.52087353,167.17,167.09,25.7127]
[1641275037593,2.52087353,167.17,167.09,0.5]
[1641275037794,2.52087353,167.17,167.06,26.0689]
[1641275037995,2.52087353,167.17,167.07,23.47738316]
[1641275038398,3.89877353,167.17,167.07,23.97738316]
[1641275039199,4.39877353,167.17,167.07,23.97738316]
[1641275040500,3.89877353,167.17,167.07,23.97738316]
[1641275041001,3.89877353,167.17,167.07,24.23738316]
[1641275042004,4.39877353,167.17,167.07,24.23738316]
[1641275043006,3.89877353,167.17,167.07,24.23738316]
[1641275043207,4.39877353,167.17,167.07,24.23738316]
[1641275047338,4.39877353,167.17,167.07,0.5]
[1641275047540,4.39877353,167.17,167.03,25.88959368]